fUST/lending_fUST_20251006
["ID","MTS","AMOUNT","RATE_DAILY","PERIOD"]
[389498989,1759683372753,782.23867552,0.00019389,9]
[389498990,1759683373411,782.23867552,0.00019757,10]
[389498995,1759683600431,374.96412,0.00015394,2]
[389498996,1759683678041,500.0,0.00015992,2]
[389498997,1759683700462,500.0,0.00015992,2]
[389498999,1759683723251,500.0,0.00015992,2]
[389499049,1759683746105,500.0,0.00015992,2]
[389499072,1759683769083,500.0,0.00015992,2]
[389499073,1759683792054,1000.0,0.00015992,2]
[389499074,1759683814320,1000.0,0.00015992,2]
[389499075,1759683837818,276.16347615,0.00015992,2]
[389499080,1759684052776,-500.0,0.00016154,2]
[389499081,1759684052801,-300.0,0.00016154,2]
[389499082,1759684052824,-223.28768233,0.000162,2]
[389499083,1759684052847,-160.0,0.000162,2]
[389499129,1759684232139,-1200.0,0.00016334,2]
[389499130,1759684232151,-300.0,0.00016334,2]
[389499132,1759684232162,-1200.0,0.00016334,2]
[389499133,1759684232171,-300.0,0.00016335,2]
[389499134,1759684232181,-300.0,0.00016335,2]
[389499135,1759684232191,-300.0,0.00016335,2]
[389499136,1759684232200,-300.0,0.00016335,2]
[389499137,1759684232209,-300.0,0.00016335,2]
[389499138,1759684232218,-1714.946782,0.00016336,2]
[389499165,1759684237945,-473.99483725,0.00016335,2]
[389499167,1759684237956,-420.26033341,0.00016335,2]
[389499168,1759684237965,-192.82129158,0.00016335,2]
[389499169,1759684237974,-35058.30296722,0.00016336,2]
[389499170,1759684237983,-10000.0,0.00016338,2]
[389499171,1759684237992,-300.0,0.000164,2]
[389499172,1759684238000,-300.0,0.000164,2]
[389499173,1759684238010,-300.0,0.000164,2]
[389499174,1759684238019,-300.0,0.000164,2]
[389499175,1759684238028,-300.0,0.000164,2]
[389499176,1759684238037,-343.79,0.00016428,3]
[389499177,1759684238047,-171.89,0.00016428,3]
[389499178,1759684238057,-515.72,0.00016428,3]
[389499179,1759684238066,-351.97154126,0.00016437,2]
[389499180,1759684238076,-213.05841264,0.00016437,2]
[389499181,1759684238085,-500.0,0.00016438,2]
[389499182,1759684238095,-1576.66,0.00016438,2]
[389499183,1759684238104,-500.0,0.00016438,2]
[389499184,1759684238113,-500.0,0.00016438,2]
[389499185,1759684238123,-491.89151387,0.00016438,2]
[389499186,1759684238132,-500.0,0.00016438,2]
[389499187,1759684238141,-294.68411504,0.00016438,2]
[389499188,1759684238151,-500.0,0.00016438,2]
[389499189,1759684238161,-500.0,0.00016438,2]
[389499190,1759684238170,-500.0,0.00016438,2]
[389499192,1759684238180,-500.0,0.00016438,2]
[389499194,1759684238190,-272.06119808,0.00016438,2]
[389499195,1759684238199,-500.0,0.00016438,2]
[389499196,1759684238208,-500.0,0.00016438,2]
[389499197,1759684238217,-500.0,0.00016438,2]
[389499198,1759684238227,-500.0,0.00016438,2]
[389499199,1759684238236,-500.0,0.00016438,2]
[389499200,1759684238246,-500.0,0.00016438,2]
[389499201,1759684238255,-500.0,0.00016438,2]
[389499202,1759684238264,-500.0,0.00016438,2]
[389499203,1759684238274,-500.0,0.00016438,2]
[389499204,1759684238284,-500.0,0.00016438,2]
[389499205,1759684238294,-653.36,0.00016438,2]
[389499206,1759684238303,-620.62229472,0.00016438,2]
[389499207,1759684238315,-500.0,0.00016438,2]
[389499208,1759684238325,-500.0,0.00016438,2]
[389499209,1759684238334,-500.0,0.00016438,2]
[389499210,1759684238344,-895.35,0.00016438,2]
[389499211,1759684238353,-500.0,0.00016438,2]
[389499212,1759684238362,-500.0,0.00016438,2]
[389499213,1759684238371,-500.0,0.00016438,2]
[389499214,1759684238380,-582.59362233,0.00016438,2]
[389499215,1759684238390,-500.0,0.00016438,2]
[389499216,1759684238399,-500.0,0.00016438,2]
[389499217,1759684238409,-500.0,0.00016438,2]
[389499218,1759684238418,-500.0,0.00016438,2]
[389499219,1759684238427,-537.28160932,0.00016438,2]
[389499220,1759684238438,-500.0,0.00016438,2]
[389499221,1759684238447,-500.0,0.00016438,2]
[389499222,1759684238456,-500.0,0.00016438,2]
[389499223,1759684238465,-500.0,0.00016438,2]
[389499224,1759684238475,-500.0,0.00016438,2]
[389499225,1759684238484,-500.0,0.00016438,2]
[389499226,1759684238494,-500.0,0.00016438,2]
[389499227,1759684238503,-500.0,0.00016438,2]
[389499228,1759684238513,-1000.0,0.00016438,2]
[389499229,1759684238522,-500.0,0.00016438,2]
[389499230,1759684238531,-500.0,0.00016438,2]
[389499231,1759684238540,-500.0,0.00016438,2]
[389499232,1759684238550,-500.0,0.00016438,2]
[389499233,1759684238559,-500.0,0.00016438,2]
[389499234,1759684238569,-500.0,0.00016438,2]
[389499235,1759684238578,-500.0,0.00016438,2]
[389499236,1759684238588,-500.0,0.00016438,2]
[389499237,1759684238598,-500.0,0.00016438,2]
[389499238,1759684238607,-500.0,0.00016438,2]
[389499239,1759684238616,-500.0,0.00016438,2]
[389499240,1759684238626,-507.04,0.00016438,2]
[389499241,1759684238635,-500.0,0.00016438,2]
[389499242,1759684238644,-160.40869653,0.00016438,2]
[389499243,1759684238654,-500.0,0.00016438,2]
[389499244,1759684238663,-500.0,0.00016438,2]
[389499245,1759684238672,-500.0,0.00016438,2]
[389499246,1759684238682,-474.76765833,0.00016438,2]
[389499247,1759684238691,-1029.78,0.00016438,2]
[389499248,1759684238702,-500.0,0.00016438,2]
[389499249,1759684238711,-500.0,0.00016438,2]
[389499250,1759684238720,-500.0,0.00016438,2]
[389499251,1759684238730,-642.57243835,0.00016438,2]
[389499252,1759684238739,-500.0,0.00016438,2]
[389499253,1759684238748,-500.0,0.00016438,2]
[389499254,1759684238758,-500.0,0.00016438,2]
[389499255,1759684238770,-500.0,0.00016438,2]
[389499256,1759684238781,-500.0,0.00016438,2]
[389499257,1759684238791,-549.32,0.00016438,2]
[389499258,1759684238801,-500.0,0.00016438,2]
[389499259,1759684238811,-863.74,0.00016438,2]
[389499260,1759684238820,-500.0,0.00016438,2]
[389499261,1759684238830,-500.0,0.00016438,2]
[389499262,1759684238840,-500.0,0.00016438,2]
[389499263,1759684238851,-500.0,0.00016438,2]
[389499264,1759684238861,-500.0,0.00016438,2]
[389499265,1759684238871,-500.0,0.00016438,2]
[389499266,1759684238880,-500.0,0.00016438,2]
[389499267,1759684238889,-500.0,0.00016438,2]
[389499268,1759684238899,-500.0,0.00016438,2]
[389499269,1759684238909,-500.0,0.00016438,2]
[389499270,1759684238919,-542.18,0.00016438,2]
[389499271,1759684238929,-631.21,0.00016438,2]
[389499272,1759684238939,-500.0,0.00016438,2]
[389499273,1759684238948,-500.0,0.00016438,2]
[389499274,1759684238958,-500.0,0.00016438,2]
[389499275,1759684238967,-500.0,0.00016438,2]
[389499276,1759684238977,-707.14,0.00016438,2]
[389499277,1759684238988,-500.0,0.00016438,2]
[389499278,1759684238998,-500.0,0.00016438,2]
[389499279,1759684239007,-343.51718202,0.00016438,2]
[389499280,1759684239018,-500.0,0.00016438,2]
[389499281,1759684239028,-500.0,0.00016438,2]
[389499282,1759684239038,-500.0,0.00016438,2]
[389499283,1759684239048,-500.0,0.00016438,2]
[389499284,1759684239058,-500.0,0.00016438,2]
[389499285,1759684239068,-500.0,0.00016438,2]
[389499286,1759684239077,-500.0,0.00016438,2]
[389499287,1759684239087,-500.0,0.00016438,2]
[389499288,1759684239097,-500.0,0.00016438,2]
[389499289,1759684239107,-1391.6,0.00016438,2]
[389499290,1759684239116,-500.0,0.00016438,2]
[389499291,1759684239126,-500.0,0.00016438,2]
[389499292,1759684239136,-500.0,0.00016438,2]
[389499293,1759684239147,-500.0,0.00016438,2]
[389499294,1759684239157,-500.0,0.00016438,2]
[389499295,1759684239167,-500.0,0.00016438,2]
[389499296,1759684239177,-442.7971609,0.00016438,2]
[389499297,1759684239187,-500.0,0.00016438,2]
[389499298,1759684239197,-2331.01,0.00016438,2]
[389499299,1759684239216,-500.0,0.00016438,2]
[389499300,1759684239229,-500.0,0.00016438,2]
[389499301,1759684239240,-500.0,0.00016438,2]
[389499302,1759684239249,-500.0,0.00016438,2]
[389499304,1759684239259,-500.0,0.00016438,2]
[389499305,1759684239269,-1230.33,0.00016438,2]
[389499306,1759684239279,-500.0,0.00016438,2]
[389499307,1759684239289,-500.0,0.00016438,2]
[389499308,1759684239299,-500.0,0.00016438,2]
[389499309,1759684239309,-500.0,0.00016438,2]
[389499311,1759684239319,-774.18,0.00016438,2]
[389499313,1759684239328,-500.0,0.00016438,2]
[389499315,1759684239339,-500.0,0.00016438,2]
[389499317,1759684239349,-500.0,0.00016438,2]
[389499319,1759684239358,-500.0,0.00016438,2]
[389499320,1759684239367,-500.0,0.00016438,2]
[389499328,1759684239667,-500.0,0.00016438,2]
[389499329,1759684239678,-500.0,0.00016438,2]
[389499330,1759684239687,-571.18,0.00016438,2]
[389499331,1759684239696,-500.0,0.00016438,2]
[389499332,1759684239705,-500.0,0.00016438,2]
[389499333,1759684239714,-907.96,0.00016438,2]
[389499334,1759684239723,-500.0,0.00016438,2]
[389499335,1759684239733,-500.0,0.00016438,2]
[389499336,1759684239742,-500.0,0.00016438,2]
[389499338,1759684239751,-500.0,0.00016438,2]
[389499340,1759684239760,-961.3,0.00016438,2]
[389499341,1759684239771,-1251.96,0.00016438,2]
[389499342,1759684239782,-500.0,0.00016438,2]
[389499343,1759684239791,-647.74,0.00016438,2]
[389499344,1759684239801,-500.0,0.00016438,2]
[389499345,1759684239810,-500.0,0.00016438,2]
[389499346,1759684239819,-500.0,0.00016438,2]
[389499347,1759684239828,-2489.88,0.00016438,2]
[389499348,1759684239837,-500.0,0.00016438,2]
[389499349,1759684239846,-500.0,0.00016438,2]
[389499350,1759684239855,-500.0,0.00016438,2]
[389499351,1759684239864,-500.0,0.00016438,2]
[389499352,1759684239874,-500.0,0.00016438,2]
[389499353,1759684239883,-500.0,0.00016438,2]
[389499354,1759684239892,-500.0,0.00016438,2]
[389499355,1759684239902,-500.0,0.00016438,2]
[389499356,1759684239912,-500.0,0.00016438,2]
[389499357,1759684239921,-500.0,0.00016438,2]
[389499358,1759684239931,-505.05744399,0.00016438,2]
[389499359,1759684239940,-500.0,0.00016438,2]
[389499360,1759684239949,-500.0,0.00016438,2]
[389499361,1759684239958,-625.73,0.00016438,2]
[389499362,1759684239968,-500.0,0.00016438,2]
[389499363,1759684239978,-1050.28,0.00016438,2]
[389499364,1759684239988,-500.0,0.00016438,2]
[389499365,1759684239997,-775.15,0.00016438,2]
[389499366,1759684240008,-500.0,0.00016438,2]
[389499367,1759684240017,-985.54,0.00016438,2]
[389499368,1759684240027,-500.0,0.00016438,2]
[389499369,1759684240036,-500.0,0.00016438,2]
[389499370,1759684240046,-500.0,0.00016438,2]
[389499371,1759684240055,-500.0,0.00016438,2]
[389499372,1759684240065,-500.0,0.00016438,2]
[389499373,1759684240075,-500.0,0.00016438,2]
[389499374,1759684240084,-470.06228698,0.00016438,2]
[389499375,1759684240094,-500.0,0.00016438,2]
[389499376,1759684240103,-500.0,0.00016438,2]
[389499377,1759684240113,-500.0,0.00016438,2]
[389499378,1759684240122,-500.0,0.00016438,2]
[389499379,1759684240132,-500.0,0.00016438,2]
[389499380,1759684240141,-500.0,0.00016438,2]
[389499381,1759684240150,-500.0,0.00016438,2]
[389499382,1759684240160,-1237.58,0.00016438,2]
[389499383,1759684240169,-482.52866925,0.00016438,2]
[389499384,1759684240182,-500.0,0.00016438,2]
[389499385,1759684240192,-500.0,0.00016438,2]
[389499386,1759684240202,-500.0,0.00016438,2]
[389499387,1759684240212,-1238.63,0.00016438,2]
[389499388,1759684240222,-500.0,0.00016438,2]
[389499389,1759684240231,-858.67,0.00016438,2]
[389499390,1759684240240,-500.0,0.00016438,2]
[389499391,1759684240250,-500.0,0.00016438,2]
[389499392,1759684240259,-1804.1,0.00016438,2]
[389499393,1759684240268,-552.57,0.00016438,2]
[389499394,1759684240277,-500.0,0.00016438,2]
[389499395,1759684240287,-500.0,0.00016438,2]
[389499396,1759684240296,-500.0,0.00016438,2]
[389499397,1759684240305,-500.0,0.00016438,2]
[389499398,1759684240315,-500.0,0.00016438,2]
[389499399,1759684240324,-821.1,0.00016438,2]
[389499400,1759684240333,-500.0,0.00016438,2]
[389499401,1759684240342,-500.0,0.00016438,2]
[389499402,1759684240351,-500.0,0.00016438,2]
[389499403,1759684240361,-801.25,0.00016438,2]
[389499404,1759684240370,-500.54956058,0.00016438,2]
[389499405,1759684240379,-500.0,0.00016438,2]
[389499406,1759684240388,-500.0,0.00016438,2]
[389499407,1759684240397,-500.0,0.00016438,2]
[389499408,1759684240407,-500.0,0.00016438,2]
[389499409,1759684240416,-1886.33,0.00016438,2]
[389499410,1759684240426,-500.0,0.00016438,2]
[389499411,1759684240436,-1636.9,0.00016438,2]
[389499412,1759684240446,-562.59,0.00016438,2]
[389499413,1759684240455,-633.64,0.00016438,2]
[389499414,1759684240464,-500.0,0.00016438,2]
[389499415,1759684240473,-500.0,0.00016438,2]
[389499416,1759684240482,-500.0,0.00016438,2]
[389499417,1759684240491,-2864.66,0.00016438,2]
[389499418,1759684240500,-500.0,0.00016438,2]
[389499419,1759684240510,-177.22478153,0.00016438,2]
[389499420,1759684240520,-685.82,0.00016438,2]
[389499421,1759684240529,-500.0,0.00016438,2]
[389499422,1759684240538,-500.0,0.00016438,2]
[389499423,1759684240548,-541.75,0.00016438,2]
[389499424,1759684240557,-500.0,0.00016438,2]
[389499425,1759684240567,-782.58,0.00016438,2]
[389499426,1759684240577,-1034.05,0.00016438,2]
[389499427,1759684240586,-504.44,0.00016438,2]
[389499428,1759684240596,-500.0,0.00016438,2]
[389499429,1759684240605,-500.0,0.00016438,2]
[389499430,1759684240615,-5049.78,0.00016438,2]
[389499431,1759684240624,-2060.19,0.00016438,2]
[389499432,1759684240633,-500.0,0.00016438,2]
[389499433,1759684240642,-500.0,0.00016438,2]
[389499434,1759684240651,-500.0,0.00016438,2]
[389499435,1759684240661,-1127.47,0.00016438,2]
[389499436,1759684240671,-500.0,0.00016438,2]
[389499437,1759684240680,-6028.32,0.00016438,2]
[389499438,1759684240689,-925.51,0.00016438,2]
[389499439,1759684240698,-1156.24,0.00016438,2]
[389499440,1759684240707,-500.0,0.00016438,2]
[389499441,1759684240717,-500.0,0.00016438,2]
[389499442,1759684240726,-647.66,0.00016438,2]
[389499443,1759684240736,-500.0,0.00016438,2]
[389499444,1759684240744,-1435.85,0.00016438,2]
[389499445,1759684240754,-1211.78,0.00016438,2]
[389499446,1759684240763,-500.0,0.00016438,2]
[389499447,1759684240776,-500.0,0.00016438,2]
[389499448,1759684240786,-3023.85,0.00016438,2]
[389499449,1759684240795,-666.94,0.00016438,2]
[389499450,1759684240805,-2711.38,0.00016438,2]
[389499451,1759684240814,-1797.31,0.00016438,2]
[389499452,1759684240823,-577.02,0.00016438,2]
[389499453,1759684240832,-603.22,0.00016438,2]
[389499454,1759684240841,-500.0,0.00016438,2]
[389499455,1759684240849,-500.0,0.00016438,2]
[389499456,1759684240858,-5881.57,0.00016438,2]
[389499457,1759684240868,-500.0,0.00016438,2]
[389499458,1759684240878,-4181.1,0.00016438,2]
[389499459,1759684240888,-500.0,0.00016438,2]
[389499460,1759684240900,-500.0,0.00016438,2]
[389499461,1759684240912,-409.03370541,0.00016438,2]
[389499462,1759684240921,-944.24,0.00016438,2]
[389499463,1759684240930,-500.0,0.00016438,2]
[389499464,1759684240941,-705.47,0.00016438,2]
[389499465,1759684240952,-1839.98,0.00016438,2]
[389499466,1759684240962,-500.0,0.00016438,2]
[389499467,1759684240972,-500.0,0.00016438,2]
[389499468,1759684240984,-1113.65,0.00016438,2]
[389499469,1759684240992,-500.0,0.00016438,2]
[389499470,1759684241002,-500.0,0.00016438,2]
[389499471,1759684241010,-500.0,0.00016438,2]
[389499472,1759684241020,-1129.91,0.00016438,2]
[389499473,1759684241031,-356.28125949,0.00016438,2]
[389499474,1759684241041,-4005.91,0.00016438,2]
[389499475,1759684241052,-500.0,0.00016438,2]
[389499476,1759684241061,-511.95,0.00016438,2]
[389499477,1759684241070,-500.0,0.00016438,2]
[389499478,1759684241080,-500.0,0.00016438,2]
[389499479,1759684241090,-3035.45,0.00016438,2]
[389499480,1759684241107,-500.0,0.00016438,2]
[389499481,1759684241117,-672.26,0.00016438,2]
[389499482,1759684241128,-990.46,0.00016438,2]
[389499483,1759684241137,-946.69,0.00016438,2]
[389499484,1759684241146,-500.0,0.00016438,2]
[389499485,1759684241156,-500.0,0.00016438,2]
[389499486,1759684241165,-2013.3,0.00016438,2]
[389499487,1759684241175,-500.0,0.00016438,2]
[389499488,1759684241184,-796.92,0.00016438,2]
[389499489,1759684241193,-500.0,0.00016438,2]
[389499490,1759684241203,-781.29,0.00016438,2]
[389499491,1759684241214,-1252.97,0.00016438,2]
[389499492,1759684241224,-500.0,0.00016438,2]
[389499493,1759684241233,-3262.42,0.00016438,2]
[389499494,1759684241242,-500.0,0.00016438,2]
[389499495,1759684241252,-536.18,0.00016438,2]
[389499496,1759684241261,-500.0,0.00016438,2]
[389499497,1759684241271,-2705.78,0.00016438,2]
[389499498,1759684241280,-500.0,0.00016438,2]
[389499499,1759684241289,-500.0,0.00016438,2]
[389499500,1759684241298,-1811.76,0.00016438,2]
[389499501,1759684241308,-298.90581815,0.00016438,2]
[389499502,1759684241317,-500.0,0.00016438,2]
[389499503,1759684241326,-500.0,0.00016438,2]
[389499504,1759684241335,-500.0,0.00016438,2]
[389499505,1759684241345,-874.3,0.00016438,2]
[389499506,1759684241354,-500.0,0.00016438,2]
[389499507,1759684241363,-500.0,0.00016438,2]
[389499508,1759684241373,-500.0,0.00016438,2]
[389499509,1759684241387,-906.32,0.00016438,2]
[389499510,1759684241396,-1413.56,0.00016438,2]
[389499511,1759684241407,-1585.95,0.00016438,2]
[389499512,1759684241417,-854.95,0.00016438,2]
[389499513,1759684241426,-500.0,0.00016438,2]
[389499514,1759684241435,-682.62,0.00016438,2]
[389499515,1759684241446,-500.0,0.00016438,2]
[389499516,1759684241455,-659.09,0.00016438,2]
[389499517,1759684241465,-525.06,0.00016438,2]
[389499518,1759684241474,-2348.46,0.00016438,2]
[389499519,1759684241484,-3307.2,0.00016438,2]
[389499520,1759684241493,-1269.65,0.00016438,2]
[389499521,1759684241502,-500.0,0.00016438,2]
[389499522,1759684241511,-364.92626692,0.00016438,2]
[389499523,1759684241520,-500.0,0.00016438,2]
[389499524,1759684241530,-2637.42,0.00016438,2]
[389499525,1759684241538,-3367.31,0.00016438,2]
[389499526,1759684241547,-500.0,0.00016438,2]
[389499527,1759684241556,-500.0,0.00016438,2]
[389499528,1759684241565,-500.0,0.00016438,2]
[389499529,1759684241574,-1483.5,0.00016438,2]
[389499530,1759684241583,-500.0,0.00016438,2]
[389499531,1759684241593,-500.0,0.00016438,2]
[389499532,1759684241602,-6443.36,0.00016438,2]
[389499533,1759684241610,-500.0,0.00016438,2]
[389499534,1759684241620,-500.0,0.00016438,2]
[389499535,1759684241629,-1000.0,0.00016438,2]
[389499536,1759684241638,-555.9,0.00016438,2]
[389499537,1759684241647,-500.0,0.00016438,2]
[389499538,1759684241656,-802.09,0.00016438,2]
[389499539,1759684241665,-500.0,0.00016438,2]
[389499540,1759684241674,-500.0,0.00016438,2]
[389499541,1759684241684,-500.0,0.00016438,2]
[389499542,1759684241695,-500.0,0.00016438,2]
[389499543,1759684241704,-653.18,0.00016438,2]
[389499544,1759684241714,-500.0,0.00016438,2]
[389499545,1759684241724,-500.0,0.00016438,2]
[389499546,1759684241733,-791.93,0.00016438,2]
[389499547,1759684241742,-725.73,0.00016438,2]
[389499548,1759684241751,-500.0,0.00016438,2]
[389499549,1759684241763,-500.0,0.00016438,2]
[389499550,1759684241776,-500.0,0.00016438,2]
[389499551,1759684241786,-605.07,0.00016438,2]
[389499552,1759684241798,-3493.37,0.00016438,2]
[389499553,1759684241809,-500.0,0.00016438,2]
[389499554,1759684241820,-870.69,0.00016438,2]
[389499555,1759684241829,-2280.56,0.00016438,2]
[389499556,1759684241840,-500.0,0.00016438,2]
[389499557,1759684241851,-500.0,0.00016438,2]
[389499558,1759684241863,-500.0,0.00016438,2]
[389499559,1759684241874,-1882.16,0.00016438,2]
[389499560,1759684241883,-500.0,0.00016438,2]
[389499561,1759684241893,-500.0,0.00016438,2]
[389499562,1759684241903,-500.0,0.00016438,2]
[389499563,1759684241914,-500.0,0.00016438,2]
[389499564,1759684241924,-1357.66,0.00016438,2]
[389499565,1759684241934,-500.0,0.00016438,2]
[389499566,1759684241944,-959.41,0.00016438,2]
[389499567,1759684241955,-500.0,0.00016438,2]
[389499568,1759684241965,-1898.49,0.00016438,2]
[389499569,1759684241974,-166.66,0.00016438,2]
[389499570,1759684241983,-500.0,0.00016438,2]
[389499571,1759684241992,-500.0,0.00016438,2]
[389499572,1759684242002,-500.0,0.00016438,2]
[389499573,1759684242011,-500.0,0.00016438,2]
[389499574,1759684242022,-1667.65,0.00016438,2]
[389499575,1759684242031,-500.0,0.00016438,2]
[389499576,1759684242040,-1000.0,0.00016438,2]
[389499577,1759684242052,-18603.8837,0.00016572,2]
[389499578,1759684242062,-162.380719,0.00016572,2]
[389499579,1759684242071,-500.0,0.00016712,2]
[389499580,1759684242082,-500.0,0.00016712,2]
[389499581,1759684242091,-1576.66,0.00016712,2]
[389499582,1759684242101,-500.0,0.00016712,2]
[389499583,1759684242110,-500.0,0.00016712,2]
[389499584,1759684242120,-478.275034,0.00016712,2]
[389499585,1759684242129,-500.0,0.00016712,2]
[389499586,1759684242139,-500.0,0.00016712,2]
[389499587,1759684242148,-500.0,0.00016712,2]
[389499588,1759684242158,-500.0,0.00016712,2]
[389499589,1759684242167,-500.0,0.00016712,2]
[389499590,1759684242176,-500.0,0.00016712,2]
[389499591,1759684242186,-500.0,0.00016712,2]
[389499592,1759684242196,-500.0,0.00016712,2]
[389499593,1759684242206,-500.0,0.00016712,2]
[389499594,1759684242215,-500.0,0.00016712,2]
[389499595,1759684242225,-653.36,0.00016712,2]
[389499596,1759684242235,-435.46879367,0.00016712,2]
[389499597,1759684242246,-500.0,0.00016712,2]
[389499598,1759684242256,-500.0,0.00016712,2]
[389499599,1759684242265,-895.35,0.00016712,2]
[389499600,1759684242274,-225.84224848,0.00016712,2]
[389499601,1759684242283,-500.0,0.00016712,2]
[389499602,1759684242294,-500.0,0.00016712,2]
[389499603,1759684242304,-500.0,0.00016712,2]
[389499604,1759684242314,-500.0,0.00016712,2]
[389499606,1759684242324,-500.0,0.00016712,2]
[389499608,1759684242333,-500.0,0.00016712,2]
[389499610,1759684242342,-500.0,0.00016712,2]
[389499612,1759684242351,-500.0,0.00016712,2]
[389499615,1759684242360,-500.0,0.00016712,2]
[389499619,1759684242370,-500.0,0.00016712,2]
[389499623,1759684242379,-500.0,0.00016712,2]
[389499626,1759684242387,-500.0,0.00016712,2]
[389499629,1759684242396,-500.0,0.00016712,2]
[389499631,1759684242405,-500.0,0.00016712,2]
[389499634,1759684242415,-500.0,0.00016712,2]
[389499636,1759684242424,-500.0,0.00016712,2]
[389499638,1759684242434,-500.0,0.00016712,2]
[389499640,1759684242444,-500.0,0.00016712,2]
[389499642,1759684242455,-500.0,0.00016712,2]
[389499644,1759684242465,-500.0,0.00016712,2]
[389499646,1759684242475,-500.0,0.00016712,2]
[389499649,1759684242484,-500.0,0.00016712,2]
[389499651,1759684242494,-507.04,0.00016712,2]
[389499653,1759684242503,-500.0,0.00016712,2]
[389499655,1759684242513,-500.0,0.00016712,2]
[389499657,1759684242523,-500.0,0.00016712,2]
[389499659,1759684242532,-1029.78,0.00016712,2]
[389499661,1759684242541,-500.0,0.00016712,2]
[389499663,1759684242550,-500.0,0.00016712,2]
[389499665,1759684242559,-500.0,0.00016712,2]
[389499667,1759684242568,-500.0,0.00016712,2]
[389499669,1759684242577,-500.0,0.00016712,2]
[389499670,1759684242587,-500.0,0.00016712,2]
[389499672,1759684242597,-549.32,0.00016712,2]
[389499673,1759684242606,-500.0,0.00016712,2]
[389499674,1759684242615,-863.74,0.00016712,2]
[389499675,1759684242624,-500.0,0.00016712,2]
[389499676,1759684242633,-500.0,0.00016712,2]
[389499677,1759684242643,-156.53734306,0.00016712,2]
[389499678,1759684242652,-622.89706521,0.00016712,2]
[389499679,1759684242662,-500.0,0.00016712,2]
[389499680,1759684242671,-500.0,0.00016712,2]
[389499681,1759684242680,-500.0,0.00016712,2]
[389499682,1759684242689,-542.18,0.00016712,2]
[389499684,1759684242699,-631.21,0.00016712,2]
[389499685,1759684242709,-424.79919537,0.00016712,2]
[389499687,1759684242719,-500.0,0.00016712,2]
[389499688,1759684242728,-707.14,0.00016712,2]
[389499689,1759684242738,-500.0,0.00016712,2]
[389499690,1759684242747,-500.0,0.00016712,2]
[389499691,1759684242756,-500.0,0.00016712,2]
[389499692,1759684242765,-500.0,0.00016712,2]
[389499693,1759684242779,-500.0,0.00016712,2]
[389499694,1759684242788,-500.0,0.00016712,2]
[389499695,1759684242797,-500.0,0.00016712,2]
[389499697,1759684242806,-500.0,0.00016712,2]
[389499698,1759684242815,-500.0,0.00016712,2]
[389499700,1759684242825,-500.0,0.00016712,2]